bitfinex-derivatives/quotes_BNBF0:USTF0_20250617
["timestamp","ask_amount","ask_price","bid_price","bid_amount"]
[1750185545326,1.0387305,644.24,643.94,1.076]
[1750185545526,1.0387305,644.23,643.94,1.076]
[1750185545722,1.0387305,644.22,643.94,1.076]
[1750185546022,1.0387305,644.21,643.94,1.076]
[1750185546226,1.0387305,644.2,643.94,1.076]
[1750185546425,1.0387305,644.19,643.94,1.076]
[1750185546629,1.0387305,644.18,643.94,1.076]
[1750185546825,1.0387305,644.17,643.94,1.076]
[1750185547025,1.0387305,644.16,643.94,1.076]
[1750185547228,1.0387305,644.15,643.94,1.076]
[1750185547426,1.0387305,644.14,643.94,1.076]
[1750185547627,1.0387305,644.13,643.94,1.076]
[1750185547824,1.0387305,644.12,643.94,1.076]
[1750185548026,1.0387305,644.11,643.94,1.076]
[1750185548229,1.0387305,644.1,643.94,1.076]
[1750185548425,1.0387305,644.09,643.94,1.076]
[1750185548725,1.0387305,644.08,643.94,1.076]
[1750185548929,1.0387305,644.07,643.94,1.076]
[1750185549128,1.0387305,644.06,643.94,1.076]
[1750185549327,1.0387305,644.05,643.94,1.076]
[1750185549527,1.0387305,644.04,643.94,1.076]
[1750185549724,1.1591732,644.24,643.94,1.076]
[1750185549928,1.03773912,644.23,643.94,1.076]
[1750185550129,1.03773912,644.22,643.94,1.076]
[1750185550328,1.1591732,644.24,643.94,1.076]
[1750185550329,1.03773912,644.21,643.94,1.076]
[1750185550628,1.03773912,644.2,643.94,1.076]
[1750185550826,1.03773912,644.19,643.94,1.076]
[1750185551024,1.03773912,644.18,643.94,1.076]
[1750185551226,1.03773912,644.17,643.94,1.076]
[1750185551425,1.03773912,644.16,643.94,1.076]
[1750185551630,1.03773912,644.15,643.94,1.076]
[1750185551829,1.03773912,644.14,643.94,1.076]
[1750185552030,1.03773912,644.13,643.94,1.076]
[1750185552328,1.03773912,644.12,643.94,1.076]
[1750185552528,1.03773912,644.11,643.94,1.076]
[1750185552724,1.03773912,644.1,643.94,1.076]
[1750185552930,1.03773912,644.09,643.94,1.076]
[1750185553229,1.03773912,644.08,643.94,1.076]
[1750185553426,1.03773912,644.07,643.94,1.076]
[1750185553729,1.03773912,644.06,643.94,1.076]
[1750185553930,1.03719391,644.05,643.94,1.076]
[1750185554130,1.1591732,644.27,643.94,1.076]
[1750185554430,1.03719428,644.26,643.94,1.076]
[1750185554630,1.03719428,644.25,643.94,1.076]
[1750185554830,1.03719428,644.24,643.94,1.076]
[1750185555028,1.03719428,644.23,643.94,1.076]
[1750185555225,1.03719428,644.22,643.94,1.076]
[1750185555424,1.1591732,644.27,643.94,1.076]
[1750185555425,1.03719428,644.21,643.94,1.076]
[1750185555628,1.03719428,644.2,643.94,1.076]
[1750185555829,1.03719428,644.19,643.94,1.076]
[1750185556027,1.03719428,644.18,643.94,1.076]
[1750185556227,1.03719428,644.17,643.94,1.076]
[1750185556429,1.03719428,644.16,643.94,1.076]
[1750185556629,1.03719428,644.15,643.94,1.076]
[1750185556928,1.03719428,644.14,643.94,1.076]
[1750185557129,1.03719428,644.13,643.94,1.076]
[1750185557330,1.03719428,644.12,643.94,1.076]
[1750185557633,1.03719428,644.11,643.94,1.076]
[1750185557831,1.03719428,644.1,643.94,1.076]
[1750185558030,1.03719428,644.09,643.94,1.076]
[1750185558228,1.03719428,644.08,643.94,1.076]
[1750185558429,1.03719428,644.07,643.94,1.076]
[1750185558634,1.1591732,644.28,643.94,1.076]
[1750185558834,2.19596701,644.27,643.94,1.076]
[1750185559133,1.03679381,644.26,643.94,1.076]
[1750185559331,1.03679381,644.25,643.94,1.076]
[1750185559532,1.03679381,644.24,643.94,1.076]
[1750185559733,1.03679381,644.23,643.94,1.076]
[1750185559930,1.03679381,644.22,643.94,1.076]
[1750185560130,1.03679381,644.21,643.94,1.076]
[1750185560335,1.03679381,644.2,643.94,1.076]
[1750185560532,1.03679381,644.19,643.94,1.076]
[1750185560734,1.03679381,644.18,643.94,1.076]
[1750185560931,1.03679381,644.17,643.94,1.076]
[1750185561137,1.03679381,644.16,643.94,1.076]
[1750185561334,1.1591732,644.28,643.94,1.076]
[1750185561335,1.03679381,644.15,643.94,1.076]
[1750185561536,1.03679381,644.14,643.94,1.076]
[1750185561833,1.03679381,644.13,643.94,1.076]
[1750185562038,1.03679381,644.12,643.94,1.076]
[1750185562237,1.03679381,644.11,643.94,1.076]
[1750185562533,1.03679381,644.1,643.94,1.076]
[1750185562736,1.03679381,644.09,643.94,1.076]
[1750185562938,1.03679381,644.08,643.94,1.076]
[1750185563235,1.1591732,644.27,643.94,1.076]
[1750185563539,1.03661422,644.26,643.94,1.076]
[1750185563733,1.03661422,644.25,643.94,1.076]
[1750185563934,1.03661422,644.24,643.94,1.076]
[1750185564137,1.03661422,644.23,643.94,1.076]
[1750185564438,1.03661422,644.22,643.94,1.076]
[1750185564634,1.03661422,644.21,643.94,1.076]
[1750185564838,1.03661422,644.2,643.95,1.284]
[1750185565136,1.03661422,644.19,643.95,1.284]
[1750185565336,1.03661422,644.18,643.95,1.284]
[1750185565534,1.03661422,644.17,643.95,1.284]
[1750185565738,1.03661422,644.16,643.95,1.284]
[1750185565934,1.03661422,644.15,643.95,1.284]
[1750185566233,1.03661422,644.14,643.95,1.284]
[1750185566435,1.03661422,644.13,643.95,1.284]
[1750185566634,1.03661422,644.12,643.95,1.284]
[1750185566838,1.03661422,644.11,643.95,1.284]
[1750185567035,1.03661422,644.1,643.95,1.284]
[1750185567239,1.03661422,644.09,643.95,1.284]
[1750185567433,1.03661422,644.08,643.95,1.284]
[1750185567638,1.1591732,644.27,643.95,1.284]
[1750185567836,1.03652222,644.26,643.95,1.284]
[1750185568036,1.03652222,644.25,643.95,1.284]
[1750185568238,1.03652222,644.24,643.95,1.284]
[1750185568539,1.03652222,644.23,643.95,1.284]
[1750185568839,1.03652222,644.22,643.95,1.284]
[1750185569036,1.03652222,644.21,643.95,1.284]
[1750185569237,1.03652222,644.2,643.96,1.446]
[1750185569534,1.03652222,644.19,643.96,1.446]
[1750185569738,1.03652222,644.18,643.96,1.446]
[1750185569937,1.03652222,644.17,643.96,1.446]
[1750185570137,1.03652222,644.16,643.96,1.446]
[1750185570339,1.03652222,644.15,643.96,1.446]
[1750185570539,1.03652222,644.14,643.96,1.446]
[1750185570739,1.03652222,644.13,643.96,1.446]
[1750185570936,1.1591732,644.24,643.96,1.446]
[1750185570937,1.03652222,644.12,643.96,1.446]
[1750185571140,1.03652222,644.11,643.96,1.446]
[1750185571337,1.03652222,644.1,643.96,1.446]
[1750185571540,1.03652222,644.09,643.96,1.446]
[1750185571740,1.03652222,644.08,643.96,1.446]
[1750185571936,1.03652222,644.07,643.96,1.446]
[1750185572141,1.03652222,644.06,643.96,1.446]
[1750185572339,1.03652222,644.05,643.96,1.446]
[1750185572543,1.1591732,644.24,643.96,1.446]
[1750185572840,1.03728395,644.23,643.96,1.446]
[1750185573044,1.03728395,644.22,643.96,1.446]
[1750185573339,1.03728395,644.21,643.96,1.446]
[1750185573542,1.03728395,644.2,643.96,1.446]
[1750185573843,1.03728395,644.19,643.96,1.446]
[1750185574139,1.03728395,644.18,643.96,1.446]
[1750185574347,1.03728395,644.17,643.96,1.446]
[1750185574639,1.03728395,644.16,643.96,1.446]
[1750185574943,1.03728395,644.15,643.96,1.446]
[1750185575239,1.03728395,644.14,643.96,1.446]
[1750185575441,1.03728395,644.13,643.96,1.446]
[1750185575643,1.03728395,644.12,643.96,1.446]
[1750185575940,1.03728395,644.11,643.96,1.446]
[1750185576143,1.03728395,644.1,643.96,1.446]
[1750185576442,1.03728395,644.09,643.96,1.446]
[1750185576639,1.03728395,644.08,643.96,1.446]
[1750185576840,1.03728395,644.07,643.96,1.446]
[1750185577045,1.03728395,644.06,643.96,1.446]
[1750185577244,1.03728395,644.05,643.96,1.446]
[1750185577442,1.1591732,644.24,643.96,1.446]
[1750185577643,1.03740311,644.23,643.96,1.446]
[1750185577843,1.03740311,644.22,643.96,1.446]
[1750185578045,1.03740311,644.21,643.96,1.446]
[1750185578243,1.03740311,644.2,643.96,1.446]
[1750185578443,1.03740311,644.19,643.96,1.446]
[1750185578644,1.03740311,644.18,643.96,1.446]
[1750185578848,1.03740311,644.17,643.96,1.446]
[1750185579146,1.03740311,644.16,643.96,1.446]
[1750185579447,1.03740311,644.15,643.96,1.446]
[1750185579646,1.03740311,644.14,643.96,1.446]
[1750185579846,1.03740311,644.13,643.96,1.446]
[1750185580049,1.1591732,644.23,643.96,1.446]
[1750185580050,1.03740311,644.12,643.96,1.446]
[1750185580249,1.03740311,644.11,643.96,1.446]
[1750185580551,1.03740311,644.1,643.96,1.446]
[1750185580849,1.03740311,644.09,643.97,1.254]
[1750185581043,1.1591732,644.23,643.97,1.254]
[1750185581044,1.03740311,644.08,643.97,1.254]
[1750185581245,1.03740311,644.07,643.97,1.254]
[1750185581452,1.03740311,644.06,643.97,1.254]
[1750185581647,1.03740311,644.05,643.97,1.254]
[1750185581851,1.03740311,644.04,643.97,1.254]
[1750185582148,1.1591732,644.23,643.97,1.254]
[1750185582350,1.0376437,644.22,643.97,1.254]
[1750185582649,1.0376437,644.21,643.97,1.254]
[1750185582851,1.0376437,644.2,643.97,1.254]
[1750185583146,1.1591732,644.15,643.97,1.254]
[1750185583446,1.0376437,644.14,643.97,1.254]
[1750185583649,1.0376437,644.13,643.97,1.254]
[1750185583950,1.0376437,644.12,643.97,1.254]
[1750185584145,1.0376437,644.11,643.97,1.254]
[1750185584351,1.0376437,644.1,643.97,1.254]
[1750185584551,1.0376437,644.09,643.97,1.254]
[1750185584748,1.0376437,644.08,643.97,1.254]
[1750185584948,1.0376437,644.07,643.97,1.254]
[1750185585148,1.0376437,644.06,643.97,1.254]
[1750185585349,1.0376437,644.05,643.97,1.254]
[1750185585550,1.0376437,644.04,643.97,1.254]
[1750185585749,1.0376437,644.03,643.97,1.254]
[1750185585953,1.0376437,644.02,643.97,1.254]
[1750185586148,1.0376437,644.01,643.97,1.254]
[1750185586349,1.0376437,644.0,643.97,1.254]
[1750185586550,1.0376437,643.99,643.97,1.254]
[1750185586750,1.0376437,643.98,643.97,1.254]
[1750185622184,0.27023459,644.12,643.97,1.254]
[1750185622384,1.1608128,644.08,643.97,1.254]
[1750185622584,1.0387838,644.07,643.97,1.254]
[1750185622780,1.0387838,644.06,643.97,1.254]
[1750185622985,1.0387838,644.05,643.97,1.254]
[1750185623284,1.0387838,644.04,643.97,1.254]
[1750185623485,1.0387838,644.03,643.97,1.254]
[1750185623686,1.0387838,644.02,643.97,1.254]
[1750185623886,1.0387838,644.01,643.97,1.254]
[1750185624085,1.0387838,644.0,643.97,1.254]
[1750185624287,1.0387838,643.99,643.97,1.254]
[1750185624481,1.0387838,643.98,643.97,1.254]
[1750185626187,1.03898254,643.98,643.97,1.254]
[1750185627286,1.038827,643.98,643.97,1.254]
[1750185636300,0.27021571,644.21,643.97,1.254]
[1750185636594,1.03679491,644.2,643.97,1.254]
[1750185636897,1.03679491,644.19,643.97,1.254]
[1750185637098,1.03679491,644.18,643.97,1.254]
[1750185637295,1.03679491,644.17,643.97,1.254]
[1750185637494,1.03679491,644.16,643.97,1.254]
[1750185637696,1.03679491,644.15,643.97,1.254]
[1750185637895,1.03679491,644.14,643.97,1.254]
[1750185638098,1.03679491,644.13,643.97,1.254]
[1750185638294,1.03679491,644.12,643.97,1.254]
[1750185638496,1.03679491,644.11,643.97,1.254]
[1750185638699,1.03679491,644.1,643.97,1.254]
[1750185638901,1.03679491,644.09,643.77,1.447]
[1750185639096,1.03679491,644.08,643.77,1.447]
[1750185639400,1.03679491,644.07,643.78,1.138]
[1750185639700,1.03679491,644.06,643.78,1.138]
[1750185639900,1.03679491,644.05,643.78,1.138]
[1750185640098,1.03679491,644.04,643.78,1.138]
[1750185640301,1.03679491,644.03,643.78,1.138]
[1750185640500,1.03679491,644.02,643.78,1.138]
[1750185640700,0.27021571,644.21,643.78,1.138]
[1750185640904,1.03677841,644.2,643.78,1.138]
[1750185641098,1.03677841,644.19,643.78,1.138]
[1750185641402,1.03677841,644.18,643.78,1.138]
[1750185641698,1.03677841,644.17,643.78,1.138]
[1750185641901,1.03677841,644.16,643.78,1.138]
[1750185642202,1.03677841,644.15,643.78,1.138]
[1750185642400,1.03677841,644.14,643.78,1.138]
[1750185642604,1.03677841,644.13,643.78,1.138]
[1750185642902,1.03677841,644.12,643.79,1.525]
[1750185643098,1.03677841,644.11,643.79,1.525]
[1750185643302,1.03677841,644.1,643.79,1.525]
[1750185643602,1.03677841,644.09,643.79,1.525]
[1750185643801,1.03677841,644.08,643.79,1.525]
[1750185643997,1.03677841,644.07,643.79,1.525]
[1750185644202,1.03677841,644.06,643.79,1.525]
[1750185644405,1.03677841,644.05,643.79,1.525]
[1750185644599,1.03677841,644.04,643.79,1.525]
[1750185644798,1.03677841,644.03,643.79,1.525]
[1750185644998,1.03677841,644.02,643.79,1.525]
[1750185645202,0.27021571,644.21,643.79,1.525]
[1750185645404,1.03658155,644.2,643.79,1.525]
[1750185645605,1.03658155,644.19,643.79,1.525]
[1750185645802,1.03658155,644.18,643.79,1.525]
[1750185646007,1.03658155,644.17,643.79,1.525]
[1750185646303,1.03658155,644.16,643.79,1.525]
[1750185646502,1.03658155,644.15,643.79,1.525]
[1750185646707,1.03658155,644.14,643.79,1.525]
[1750185647007,1.03658155,644.13,643.79,1.525]
[1750185647203,1.03658155,644.12,643.79,1.525]
[1750185647507,1.03658155,644.11,643.79,1.525]
[1750185647803,1.03658155,644.1,643.79,1.525]
[1750185648007,1.03658155,644.09,643.79,1.525]
[1750185648207,1.03658155,644.08,643.79,1.525]
[1750185648403,1.03658155,644.07,643.79,1.525]
[1750185648604,1.03653248,644.06,643.79,1.525]
[1750185648810,1.03653248,644.05,643.79,1.525]
[1750185649004,1.03653248,644.04,643.79,1.525]
[1750185649207,1.03653248,644.03,643.79,1.525]
[1750185649504,1.03653248,644.02,643.79,1.525]
[1750185649704,1.03653248,644.01,643.79,1.525]
[1750185649904,1.03653248,644.0,643.79,1.525]
[1750185650106,0.27021571,644.21,643.79,1.525]
[1750185650308,1.0364889,644.2,643.79,1.525]
[1750185650507,1.0364889,644.19,643.79,1.525]
[1750185650707,1.0364889,644.18,643.79,1.525]
[1750185650906,1.03648198,644.17,643.79,1.525]
[1750185651105,1.03648198,644.16,643.79,1.525]
[1750185651308,1.03648198,644.15,643.79,1.525]
[1750185651509,1.03648198,644.14,643.79,1.525]
[1750185651809,1.03648198,644.13,643.79,1.525]
[1750185652108,1.03648198,644.12,643.79,1.525]
[1750185652308,1.03648198,644.11,643.79,1.525]
[1750185652504,1.03648198,644.1,643.79,1.525]
[1750185652703,1.03648198,644.09,643.79,1.525]
[1750185652904,1.03648198,644.08,643.79,1.525]
[1750185653104,1.03648198,644.07,643.79,1.525]
[1750185653304,1.03648198,644.06,643.79,1.525]
[1750185653606,1.03648198,644.05,643.79,1.525]
[1750185653804,1.03648198,644.04,643.79,1.525]
[1750185654008,1.03648198,644.03,643.79,1.525]
[1750185654205,1.03648449,644.02,643.79,1.525]
[1750185654410,1.03648449,644.01,643.79,1.525]
[1750185654611,0.27021571,644.21,643.79,1.525]
[1750185654805,1.03648816,644.2,643.79,1.525]
[1750185655110,1.03648816,644.19,643.79,1.525]
[1750185655310,1.03648816,644.18,643.79,1.525]
[1750185655510,1.03648816,644.17,643.79,1.525]
[1750185655810,1.03648816,644.16,643.79,1.525]
[1750185656008,1.03648816,644.15,643.79,1.525]
[1750185656206,1.03648816,644.14,643.79,1.525]
[1750185656404,1.03648816,644.13,643.79,1.525]
[1750185656609,1.03648816,644.12,643.79,1.525]
[1750185656806,1.43081469,644.21,643.79,1.525]
[1750185656807,1.03648816,644.11,643.79,1.525]
[1750185657012,1.03648816,644.1,643.79,1.525]
[1750185657211,1.03648816,644.09,643.79,1.525]
[1750185657507,1.03648816,644.08,643.79,1.525]
[1750185657710,1.03648816,644.07,643.79,1.525]
[1750185657910,1.03648816,644.06,643.8,1.11]
[1750185658111,1.03648816,644.05,643.8,1.11]
[1750185658306,0.27021571,644.21,643.8,1.11]
[1750185658307,1.03648816,644.04,643.8,1.11]
[1750185658610,1.03648816,644.03,643.8,1.11]
[1750185658807,1.03648816,644.02,643.8,1.11]
[1750185659012,1.03648816,644.01,643.8,1.11]
[1750185659211,0.27021571,644.21,643.8,1.11]
[1750185659411,1.03802391,644.2,643.8,1.11]
[1750185659613,1.03802391,644.19,643.8,1.11]
[1750185659809,1.03802391,644.18,643.8,1.11]
[1750185660111,1.03802391,644.17,643.8,1.11]
[1750185660312,1.03802391,644.16,643.8,1.11]
[1750185660511,0.27021571,644.21,643.8,1.11]
[1750185660512,1.03802391,644.15,643.8,1.11]
[1750185660808,1.03802391,644.14,643.8,1.11]
[1750185661111,1.03802391,644.13,643.8,1.11]
[1750185661313,1.03802391,644.12,643.8,1.11]
[1750185661512,1.03802391,644.11,643.8,1.11]
[1750185661712,1.03802391,644.1,643.8,1.11]
[1750185661915,1.03802391,644.09,643.8,1.11]
[1750185662211,1.03802391,644.08,643.8,1.11]
[1750185662509,1.03802391,644.07,643.8,1.11]
[1750185662707,1.03802391,644.06,643.8,1.11]
[1750185662908,1.03802391,644.05,643.8,1.11]
[1750185663113,1.03802391,644.04,643.8,1.11]
[1750185663311,1.03802391,644.03,643.8,1.11]
[1750185663521,1.03802391,644.02,643.8,1.11]
[1750185663720,1.16059898,644.13,643.8,1.11]
[1750185663721,1.03802391,644.01,643.8,1.11]
[1750185663917,1.03802391,644.0,643.8,1.11]
[1750185664112,1.03802391,643.99,643.8,1.11]
[1750185664313,1.03802391,643.98,643.8,1.11]
[1750185664516,1.03802391,643.97,643.8,1.11]
[1750185664713,1.03802391,643.96,643.8,1.11]
[1750185664914,1.03802391,643.95,643.8,1.11]
[1750185665114,1.03802391,643.94,643.8,1.11]
[1750185665414,1.03802391,643.93,643.8,1.11]
[1750185665617,1.16059898,644.11,643.8,1.11]
[1750185665618,1.03802391,643.92,643.8,1.11]
[1750185665815,1.03802391,643.91,643.8,1.11]
[1750185666013,1.16059898,644.11,643.8,1.11]
[1750185666218,1.03851771,644.1,643.8,1.11]
[1750185666414,1.16059898,644.08,643.8,1.11]
[1750185666615,1.03851771,644.07,643.8,1.11]
[1750185666819,1.03851771,644.06,643.8,1.11]
[1750185667120,1.03851771,644.05,643.8,1.11]
[1750185667317,1.03851771,644.04,643.8,1.11]
[1750185667516,1.03851771,644.03,643.8,1.11]
[1750185667719,1.03851771,644.02,643.8,1.11]
[1750185668020,1.03851771,644.01,643.8,1.11]
[1750185668217,1.03851771,644.0,643.8,1.11]
[1750185668520,1.03851771,643.99,643.8,1.11]
[1750185668720,1.03851771,643.98,643.8,1.11]
[1750185668917,1.03851771,643.97,643.8,1.11]
[1750185669117,1.03851771,643.96,643.8,1.11]
[1750185669319,1.03851771,643.95,643.8,1.11]
[1750185669518,1.03851771,643.94,643.8,1.11]
[1750185669717,1.03851771,643.93,643.8,1.11]
[1750185669918,1.03851771,643.92,643.8,1.11]
[1750185670123,1.03851771,643.91,643.8,1.11]
[1750185670323,1.03851771,643.9,643.81,1.518]
[1750185670519,1.03851771,643.89,643.81,1.518]
[1750185670823,1.03851771,643.88,643.81,1.518]
[1750185671022,1.03851771,643.87,643.81,1.518]
[1750185671220,1.16059898,644.08,643.81,1.518]
[1750185671423,1.03851376,644.07,643.81,1.518]
[1750185671622,1.03851376,644.06,643.81,1.518]
[1750185671822,1.03851376,644.05,643.81,1.518]
[1750185672024,1.03851376,644.04,643.81,1.518]
[1750185672219,1.03851376,644.03,643.81,1.518]
[1750185672424,1.16059898,644.08,643.81,1.518]
[1750185672425,1.03851376,644.02,643.81,1.518]
[1750185672624,1.03851376,644.01,643.81,1.518]
[1750185672822,1.03851376,644.0,643.81,1.518]
[1750185673026,1.03851376,643.99,643.81,1.518]
[1750185673224,1.03851376,643.98,643.81,1.518]
[1750185673426,1.03851376,643.97,643.81,1.518]
[1750185673627,1.03851376,643.96,643.81,1.518]
[1750185673822,1.03851376,643.95,643.81,1.518]
[1750185674026,1.03851376,643.94,643.81,1.518]
[1750185674224,1.03851376,643.93,643.81,1.518]
[1750185674425,1.03851376,643.92,643.81,1.518]
[1750185674627,1.03851376,643.91,643.81,1.518]
[1750185674828,1.03851376,643.9,643.81,1.518]
[1750185675124,1.03851376,643.89,643.81,1.518]
[1750185675324,1.03851376,643.88,643.81,1.518]
[1750185675528,1.16059898,644.08,643.81,1.518]
[1750185675724,1.03836104,644.07,643.81,1.518]
[1750185675924,1.03836104,644.06,643.81,1.518]
[1750185676224,0.27021571,644.21,643.82,1.38]
[1750185676225,1.03836104,644.05,643.82,1.38]
[1750185676528,1.03836104,644.04,643.82,1.38]
[1750185676725,1.03836104,644.03,643.82,1.38]
[1750185676932,1.03836104,644.02,643.82,1.38]
[1750185677225,1.03836104,644.01,643.82,1.38]
[1750185677429,1.03836104,644.0,643.82,1.38]
[1750185677624,1.03836104,643.99,643.82,1.38]
[1750185677824,1.03836104,643.98,643.82,1.38]
[1750185678029,1.03836104,643.97,643.82,1.38]
[1750185678226,1.03836104,643.96,643.82,1.38]
[1750185678425,1.03836104,643.95,643.82,1.38]
[1750185678625,1.03836104,643.94,643.82,1.38]
[1750185678829,1.03836104,643.93,643.82,1.38]
[1750185679131,1.03836104,643.92,643.82,1.38]
[1750185679431,1.03836104,643.91,643.82,1.38]
[1750185679730,1.03836104,643.9,643.82,1.38]
[1750185680025,1.03836104,643.89,643.82,1.38]
[1750185680231,1.16059898,644.07,643.82,1.38]
[1750185680426,1.03824411,644.06,643.82,1.38]
[1750185680630,1.03824411,644.05,643.82,1.38]
[1750185680830,1.03824411,644.04,643.82,1.38]
[1750185681031,1.03824411,644.03,643.82,1.38]
[1750185681230,1.03824411,644.02,643.82,1.38]
[1750185681431,1.03824411,644.01,643.82,1.38]
[1750185681627,1.03824411,644.0,643.82,1.38]
[1750185681830,1.03824411,643.99,643.82,1.38]
[1750185682031,1.03824411,643.98,643.82,1.38]
[1750185682231,1.03824411,643.97,643.82,1.38]
[1750185682427,1.03824411,643.96,643.82,1.38]
[1750185682731,1.03824411,643.95,643.82,1.38]
[1750185682927,1.03824411,643.94,643.82,1.38]
[1750185683126,1.03824411,643.93,643.82,1.38]
[1750185683327,1.03824411,643.92,643.82,1.38]
[1750185683531,1.03824411,643.91,643.82,1.38]
[1750185683727,1.03824411,643.9,643.82,1.38]
[1750185684026,1.03824411,643.89,643.82,1.38]
[1750185684332,1.03824411,643.88,643.82,1.38]
[1750185684529,1.16059898,644.08,643.82,1.38]
[1750185684727,1.03825118,644.07,643.82,1.38]
[1750185684932,1.03825118,644.06,643.82,1.38]
[1750185685132,1.03825118,644.05,643.82,1.38]
[1750185685333,0.27021571,644.21,643.82,1.38]
[1750185685334,1.03825118,644.04,643.82,1.38]
[1750185685629,1.03825118,644.03,643.82,1.38]
[1750185685831,1.03825118,644.02,643.82,1.38]
[1750185686036,1.03825118,644.01,643.82,1.38]
[1750185686234,1.03825118,644.0,643.82,1.38]
[1750185686432,1.03825118,643.99,643.82,1.38]
[1750185686732,1.03825118,643.98,643.82,1.38]
[1750185686936,1.03825118,643.97,643.82,1.38]
[1750185687138,1.03813465,643.96,643.82,1.38]
[1750185687337,1.43081469,644.21,643.82,1.38]
[1750185687538,2.19871768,644.2,643.82,1.38]
[1750185687738,1.0381187,644.19,643.82,1.38]
[1750185687936,1.0381187,644.18,643.82,1.38]
[1750185688138,1.0381187,644.17,643.82,1.38]
[1750185688338,1.0381187,644.16,643.82,1.38]
[1750185688535,1.0381187,644.15,643.82,1.38]
[1750185688738,1.0381187,644.14,643.82,1.38]
[1750185688940,1.0381187,644.13,643.82,1.38]
[1750185689140,1.0381187,644.12,643.82,1.38]
[1750185689440,1.0381187,644.11,643.82,1.38]
[1750185689638,1.0381187,644.1,643.82,1.38]
[1750185689841,1.0381187,644.09,643.82,1.38]
[1750185690040,1.0381187,644.08,643.82,1.38]
[1750185690241,1.0381187,644.07,643.82,1.38]
[1750185690440,1.0381187,644.06,643.82,1.38]
[1750185690639,1.0381187,644.05,643.82,1.38]
[1750185690839,1.0381187,644.04,643.82,1.38]
[1750185691042,1.0381187,644.03,643.82,1.38]
[1750185691243,1.0381187,644.02,643.82,1.38]
[1750185691441,1.0381187,644.01,643.82,1.38]
[1750185691740,1.0381187,644.0,643.82,1.38]
[1750185691939,1.0381187,643.99,643.82,1.38]
[1750185692138,1.0381187,643.98,643.82,1.38]
[1750185692338,1.0381187,643.97,643.82,1.38]
[1750185692642,1.16059898,644.2,643.82,1.38]
[1750185692944,1.03537064,644.19,643.82,1.38]
[1750185693143,1.03537064,644.18,643.82,1.38]
[1750185693440,1.03537064,644.17,643.82,1.38]
[1750185693644,1.03537064,644.16,643.82,1.38]
[1750185693943,1.03537064,644.15,643.82,1.38]
[1750185694139,1.03537064,644.14,643.82,1.38]
[1750185694338,1.03537064,644.13,643.82,1.38]
[1750185694543,1.03537064,644.12,643.82,1.38]
[1750185694743,1.03537064,644.11,643.82,1.38]
[1750185694941,1.03537064,644.1,643.82,1.38]
[1750185695140,1.03537064,644.09,643.82,1.38]
[1750185695340,1.03537064,644.08,643.82,1.38]
[1750185695544,1.03537064,644.07,643.82,1.38]
[1750185695744,1.03537064,644.06,643.82,1.38]
[1750185695942,1.03537064,644.05,643.82,1.38]
[1750185696142,1.03537064,644.04,643.82,1.38]
[1750185696343,1.03537064,644.03,643.82,1.38]
[1750185696545,1.03537064,644.02,643.82,1.38]
[1750185696746,1.03537064,644.01,643.82,1.38]
[1750185696946,1.03537064,644.0,643.82,1.38]
[1750185697148,1.03537064,643.99,643.82,1.38]
[1750185697345,1.03537064,643.98,643.82,1.38]
[1750185697550,1.16059898,644.17,643.82,1.38]
[1750185697750,1.03550952,644.16,643.82,1.38]